Cogmind - Beta 13 @@@ ROGUE MODE // 2024.04.03 @ 22:12:24 Player: Gingerlink Result: Destroyed by Autobeam Turret with Autobeam Performance ------------- Evolutions (0) 0 Regions Visited (2) 400 Robots Destroyed (25) 125 Value Destroyed (638) 638 Prototype IDs (0) 0 Alien Tech Used (0) 0 Bonus (0) 0 TOTAL SCORE: 1163 Bonus ------- None Cogmind --------- Core Integrity 0/250 Matter 217/300 Energy 254/265 System Corruption 2% Temperature Cool (6) Movement Walking (190) Ox1 Location -10/Subcaves Parts ------- > --- POWER (1) -------- Improved Ion Engine > --- PROPULSION (2) --- Aluminum Leg Aluminum Leg > --- UTILITY (2) ------ Cooling System (fused) Small Storage Unit > --- WEAPON (2) ------- Subdweller Beam Cannon Grenade Launcher > --- INVENTORY (8) ---- Subdweller Power Source Aluminum Leg Hardened Light Armor Plating Beam Rifle Subdweller Laser Light Assault Rifle Makeshift Sword Peak State ------------ > --- POWER ------------ Improved Ion Engine > --- PROPULSION ------- Aluminum Leg Aluminum Leg > --- UTILITY ---------- Cooling System Small Storage Unit > --- WEAPON ----------- Beam Rifle Light Assault Rifle > --- INVENTORY -------- Improved Ion Engine Aluminum Leg Aluminum Leg Aluminum Leg Beam Rifle Light Assault Rifle Grenade Launcher Hammer [Rating: 11] Favorites ----------- Power Improved Ion Engine Engine Improved Ion Engine Propulsion Aluminum Leg Leg Aluminum Leg Utility Small Storage Unit Device Cooling System Storage Small Storage Unit Processor Signal Interpreter Protection Hardened Light Armor Plating Weapon Light Assault Rifle Energy Gun Beam Rifle Energy Cannon Subdweller Beam Cannon Ballistic Gun Light Assault Rifle Launcher Grenade Launcher Impact Weapon Hammer Build | -11 -10 -10 ------- Run | Yrd Mat Sub Slots Evolved . | . . . Power . | . . . Propulsion . | . . . Utility . | . . . Weapon . | . . . Parts Attached 38 | 7 18 13 Power 6 | 1 3 2 Engine 6 | 1 3 2 Core . | . . . Reactor . | . . . Propulsion 7 | 2 4 1 Treads . | . . . Leg 7 | 2 4 1 Wheel . | . . . Hover . | . . . Flight . | . . . Utility 7 | 1 4 2 Device 1 | . 1 . Storage 4 | 1 2 1 Processor 1 | . 1 . Hackware . | . . . Protection 1 | . . 1 Artifact . | . . . Weapon 18 | 3 7 8 Energy Gun 3 | 1 1 1 Energy Cannon 1 | . . 1 Ballistic Gun 7 | 2 3 2 Ballistic Cannon . | . . . Launcher 4 | . . 4 Special Weapon . | . . . Impact Weapon 3 | . 3 . Slashing Weapon . | . . . Piercing Weapon . | . . . Special Melee Weapon . | . . . Unidentified Prototypes . | . . . Parts Lost 1 | . . 1 Power . | . . . Propulsion 1 | . . 1 Utility . | . . . Weapon . | . . . Highest Loss Streak 1 | . . 1 To Critical Strikes . | . . . Average Slot Usage (%) 95 | . 92 99 Engine 14 | . 14 14 Leg 27 | . 28 27 Device 8 | . 4 14 Storage 13 | . 13 13 Processor 1 | . 2 . Energy Gun 4 | . 4 3 Energy Cannon 3 | . . 7 Ballistic Gun 16 | . 23 8 Launcher 3 | . . 7 Naked Turns . | . . . Heaviest Build 25 | 10 18 25 Greatest Support 20 | 20 20 20 Greatest Overweight (x) 1 | 1 . 1 Average Overweight (x) . | . . . Largest Inventory Capacity 20 | 8 20 8 Average Capacity 8 | 7 8 7 Most Carried 8 | 4 8 8 Average Carried 6 | 1 6 7 Final Capacity 8 | 8 8 8 Final Carried 8 | 4 8 7 Class Distribution -------------------- 98% | Mutant Dominant Class ---------------- Mutant | -10/Materials Mutant | -10/Subcaves Resources | -11 -10 -10 ----------- Run | Yrd Mat Sub Matter Collected 862 | 253 295 314 Remotely . | . . . Salvage Created 621 | . 463 158 Parts 47 | . 35 12 Haulers Intercepted . | . . . Recyclers Shooed 2 | . 2 . Parts Field Recycled . | . . . Retrieved Matter . | . . . Parts Self-Destructed 7 | . . 7 Prevented . | . . . Kills | -11 -10 -10 ------- Run | Yrd Mat Sub Combat Hostiles Destroyed 22 | . 13 9 Guns 16 | . 13 3 Cannons 1 | . . 1 AOE 5 | . . 5 Classes Destroyed 5 | . 4 1 Worker 1 | . 1 . Watcher 2 | . 2 . Swarmer 8 | . 5 3 Grunt 8 | . 8 . Subdweller 6 | . . 6 Best Kill Streak 3 | . 2 3 Combat Bots Only 3 | . 2 3 Max Kills in Single Turn 2 | . 1 2 Gunslinging . | . . . Exploded 2 | . . 2 Melee . | . . . Uniques/NPCs Destroyed . | . . . Combat | -11 -10 -10 -------- Run | Yrd Mat Sub Hostile Shots Fired 121 | . 60 61 Missed 41 | . 20 21 Damage Taken 1026 | . 439 587 Core 255 | . 80 175 Absorbed by Shields . | . . . Core Remaining (%) 100 | 100 . . Volleys Fired 78 | . 54 24 Largest 2 | . 2 2 Hottest 110 | . 76 110 Shots Fired 154 | . 107 47 Gun 122 | . 107 15 Cannon 11 | . . 11 Launcher 21 | . . 21 Special . | . . . Kinetic 104 | . 97 7 Thermal 29 | . 10 19 Explosive 21 | . . 21 Electromagnetic . | . . . Robot Hit Streak 10 | . 6 10 Robot Miss Streak 4 | . 4 3 Penetration Max . | . . . Secondary Targets 1 | . 1 . Max Gunslinging Chain 1 | . 1 . Shots Hit Robots 84 | . 61 23 Core Hits 52 | . 33 19 Critical Kills . | . . . Critical Parts Destroyed . | . . . Critical Strikes . | . . . Melee Attacks 12 | . 12 . Impact 12 | . 12 . Slashing . | . . . Piercing . | . . . Sneak Attacks 1 | . 1 . Combat Hostiles . | . . . Follow-up Attacks . | . . . Damage Inflicted 1519 | . 547 972 Guns 635 | . 501 134 Cannons 113 | . . 113 Explosions 725 | . . 725 Melee 42 | . 42 . Ramming 4 | . 4 . Kinetic 490 | . 442 48 Thermal 258 | . 59 199 Explosive 725 | . . 725 Electromagnetic . | . . . Impact 42 | . 42 . Slashing . | . . . Piercing . | . . . Highest Corruption 2 | . 2 2 Average Corruption 2 | . 2 2 Corruption Purged . | . . . Corruption Blocked . | . . . Effects 36 | . 21 15 Message Errors 5 | . 3 2 Matter Fused 9 | . 4 5 Heat Flow Errors 3 | . 1 2 Energy Discharges 6 | . 4 2 Parts Fused 2 | . 2 . Data Loss (minor) 6 | . 3 3 Data Loss (major) 2 | . 2 . Misfires 2 | . 1 1 Weapon Failures 1 | . 1 . Overload Shots . | . . . Overflow Damage 22 | . 22 . Projectiles . | . . . Explosions . | . . . Melee 22 | . 22 . Knockbacks . | . . . Impact . | . . . Kinetic . | . . . Secondary . | . . . Self-Inflicted Damage 89 | . . 89 Shots 3 | . . 3 Rammed . | . . . Targets Rammed 2 | . 2 . Kicked 2 | . 2 . Crushed . | . . . Highest Temperature 236 | . 236 178 Average Temperature 44 | . 39 75 Received Heat Transfer 360 | . 204 156 Siege Activations . | . . . Robots Corrupted . | . . . Combat Hostiles . | . . . Parts Fried . | . . . Impact Corruptions 1 | . 1 . Robots Melted . | . . . Combat Hostiles . | . . . Parts Melted . | . . . Heat Transferred 518 | . 148 370 Parts Sabotaged . | . . . Parts Stolen . | . . . Parts Stripped . | . . . Power Chain Reactions . | . . . Alert | -11 -10 -10 ------- Run | Yrd Mat Sub Peak Influence 176 | . 176 . Initial . | . . . Average 74 | . 78 . Maximum Alert Level . | . . . Low Security (%) 100 | 100 100 . Level 1 . | . . . Level 2 . | . . . Level 3 . | . . . Level 4 . | . . . Level 5 . | . . . High Security . | . . . Max Security . | . . . Squads Dispatched 3 | . 3 . Investigation 1 | . 1 . Extermination . | . . . Reinforcement 2 | . 2 . Assault . | . . . Garrison . | . . . Intercept . | . . . Searches Triggered . | . . . Construction Impeded . | . . . Haulers Reinforced . | . . . Active Scanning Responses . | . . . Cargo Convoy Interrupts . | . . . Stealth | -11 -10 -10 --------- Run | Yrd Mat Sub Distress Signals 1 | . 1 . Communications Jammed . | . . . Distress Signals . | . . . Times Spotted 49 | . 25 24 Peak Tracking Total 6 | . 3 6 Tactical Retreats 6 | . 4 2 Traps | -11 -10 -10 ------- Run | Yrd Mat Sub Traps Triggered 2 | . 2 . Indirectly . | . . . Trap Hack Attempts . | . . . Triggered . | . . . Disarmed . | . . . Reprogrammed . | . . . Reused . | . . . Traps Extracted . | . . . Installed . | . . . Triggered . | . . . Machines | -11 -10 -10 ---------- Run | Yrd Mat Sub Machines Disabled 3 | . . 3 Max in Single Turn 2 | . . 2 Machines Repaired . | . . . Machines Dismantled . | . . . Machines Sabotaged . | . . . Overloaded Fab Kills . | . . . Hacking | -11 -10 -10 --------- Run | Yrd Mat Sub Machines Accessed . | . . . Terminals . | . . . Fabricators . | . . . Repair Stations . | . . . Recycling Units . | . . . Scanalyzers . | . . . Garrison Access . | . . . Total Hacks . | . . . Successful . | . . . Failed . | . . . Catastrophic . | . . . Database Lockouts . | . . . Manual . | . . . Terminals . | . . . Fabricators . | . . . Repair Stations . | . . . Recycling Units . | . . . Scanalyzers . | . . . Garrison Access . | . . . Terminal Hacks . | . . . Fabricator Hacks . | . . . Repair Station Hacks . | . . . Recycling Unit Hacks . | . . . Scanalyzer . | . . . Garrison Access Hacks . | . . . Unauthorized Hacks . | . . . Terminals . | . . . Fabricators . | . . . Repair Stations . | . . . Recycling Units . | . . . Scanalyzers . | . . . Garrison Access . | . . . Data Cores Recovered . | . . . Used . | . . . Hacking Detections . | . . . Full Trace Events . | . . . Feedback Events . | . . . Feedback Blocked . | . . . Robot Schematics Acquired . | . . . Robots Built . | . . . Authchips . | . . . Time . | . . . Total Robot Build Rating . | . . . Part Schematics Acquired . | . . . Parts Built . | . . . Authchips . | . . . Time . | . . . Total Part Build Rating . | . . . Parts Repaired . | . . . Time . | . . . Parts Recycled . | . . . Recycled Matter . | . . . Retrieved Matter . | . . . Retrieved Components . | . . . Parts Scanalyzed . | . . . Part Schematics Acquired . | . . . Parts Damaged . | . . . Bothacking | -11 -10 -10 ------------ Run | Yrd Mat Sub Used RIF Installer . | . . . Robots Hacked . | . . . Non-combat . | . . . Combat . | . . . Robot Hacks Applied . | . . . Relay Couplers Released . | . . . Fabnet Peak Effective % . | . . . Robots Rewired . | . . . Allies Hacked . | . . . Hacks Repelled . | . . . Allies | -11 -10 -10 -------- Run | Yrd Mat Sub Total Allies . | . . . Largest Group . | . . . Highest-Rated Group . | . . . Highest-Rated Ally . | . . . Total Orders . | . . . Ally Attacks . | . . . Total Damage . | . . . Kills . | . . . Allies Corrupted . | . . . Allies Melted . | . . . Intel | -11 -10 -10 ------- Run | Yrd Mat Sub Robot Analysis Total . | . . . Derelict Logs Recovered 1 | . . 1 Drone Launches . | . . . Drone Recoveries . | . . . Exploration | -11 -10 -10 ------------- Run | Yrd Mat Sub Turns Passed 2754 | 85 1489 1180 Spaces Moved 1751 | 63 982 706 Core 10 | 10 . . Treads . | . . . Legs 1741 | 53 982 706 Wheels . | . . . Hover . | . . . Flight . | . . . Fastest Speed 50 | 50 120 120 Average Speed 131 | 113 120 150 Slowest Speed 190 | 120 120 190 Overloaded Moves . | . . . Propulsion Burnouts . | . . . Robots Hopped . | . . . Cave-ins Triggered . | . . . Exploration Rate (%) 44 | 6 86 40 Regions Visited 2 Branch Regions 1 Pre-discovered Areas 1 | . . 1 Known Exits Taken . | . . . Unknown Exits Taken 2 | 1 1 . Scrap Searched 4 | . . 4 Spaces Dug 12 | . 8 4 Terrain Destroyed 104 | . 8 96 Melee 8 | . 8 . Projectile . | . . . AOE 96 | . . 96 Terrain Rammed . | . . . Walls Destroyed . | . . . Machines Disabled . | . . . Actions | -11 -10 -10 --------- Run | Yrd Mat Sub Total 2037 | 73 1184 780 Wait 117 | . 91 26 Move 1749 | 62 981 706 Hop . | . . . Pick Up 21 | 4 11 6 Fast Attach 10 | 6 3 1 Attach 2 | . 1 1 Detach 2 | . 2 . Swap 26 | 1 14 11 Drop 18 | . 13 5 Fire 78 | . 54 24 Melee 12 | . 12 . Ram . | . . . Kick 2 | . 2 . Crush . | . . . Escape Stasis . | . . . Rewire . | . . . Trap . | . . . Miscellaneous . | . . . Route ------- -11/Scrapyard -10/Materials (discovered 3 exits: *Mat x2 / [*Sub]) -10/Subcaves (discovered 1 exit: *Rec) History --------- Turn | Location | Event 40 | -11/Scrapyard | Discovered new exit (range 16) 86 | -11/Scrapyard | Entered Materials 301 | -10/Materials | Build established: Mutant 450 | -10/Materials | Discovered new exit (range 2) 870 | -10/Materials | Discovered new exit (range 13) 885 | -10/Materials | Identified exit to Materials 1192 | -10/Materials | Discovered exit to Materials (range 10) 1575 | -10/Materials | Entered Subcaves 1784 | -10/Subcaves | Core integrity fell below 50% 1883 | -10/Subcaves | Learned location of Zion (-7) 1883 | -10/Subcaves | Met a Zionite searching for "candidates" 1888 | -10/Subcaves | Identified exit to Recycling 2028 | -10/Subcaves | Shifting Twisted Machinery released Sub. Beam Cannon 2430 | -10/Subcaves | Core integrity fell below 20% 2755 | -10/Subcaves | Destroyed by Autobeam Turret with Autobeam Last Messages --------------- Acquired 30 matter. Acquired Mak. Sword. Dropped Hammer. Searching scrap... Found Shrapnel Trap. Found Scrap Shield. Found 31 Matter. The unstable cave ceiling collapses. System corrupted: Matter fused (-7). Sub. Power Source shoots sparks and powers down. EG%JNI4,F< 8QF&%HOMB6JUF System corrupted: Energy discharge (-30). System corrupted: Heat flow error (+243). System corrupted: Matter fused (-6). S-10 Pest destroyed. Machine disabled. S-10 Pest destroyed. Machine disabled. Lgt. Assault Rifle fries itself beyond repair. The unstable cave ceiling collapses. Map ----- +----------------------------------------------------+ | ?????????????????????????????????????????????????? | | ?????????????????????????????????????????????????? | | ?????????????????????????????????????????????????? | | ?????????????????????????????????????????????????? | | ?????????????????????????????????????????????????? | | ?????????????????????????????????????????????????? | | ?????????????????????????????????????????????????? | | ?????????????????????????????????????????????????? | | ????????????????????? ??????????????????????????? | | ????????????????????? ????????????????????????? | | ???????????????????? ???????????????????????? | | ???????????????????# #???????????????????????? | | ??????????????????# #???????????????????????? | | ?????????????##### ????????????????????????? | | ????????????## ????????????????????????? | | ???????????## ?????????????????????????? | | ??????????## ???????????????????????????? | | ?????????## ?????????????????????????????? | | ???????### #??????????????????????????????? | | ???????# ####????????????????????????????? | | ????????# ## #????????????????????????????? | | ????##### #????????????#???????????????? | | ????# ##### #########?? #???????????????? | | ????### ##### # # # #???????????????? | | ??????## ## ##???????????????? | | ???????### #### @ #???????????????? | | ?????????## #??#### ## ## ##???????????????? | | ??????????# ##?????### #????????????????????? | | ??????##### #????????? ???????????????????? | | ?????## ##???????## #?????????????????? | | ????## ##???????# #????????????????? | | ????# ##??????= #????????????????? | | ????# #?????? *= #???????????????? | | ???## #?????? ##???????????????? | | ???# ##????? t t #????????????????? | | ???# #????? #????????????????? | | ??## ## ### #????? #????????????????? | | ??# #?# ###?####?????##># ##????????????????? | | ??## ?## #??????????????#? ###?????????????????? | | ?## ## ##???????????????##???????????????????? | | ?# #????????????????????????????????????? | | ?## ## #????????????????????????????????????? | | ??# ## #????????????????????????????????????? | | ??# ##????????????????????????????????????? | | ??## #?????????????????????????????????????? | | ???### #?????????????????????????????????????? | | ?###### #?????????????????????????????????????? | | ?# ## ##?????????????????????????????????????? | | ?# # ##??????????????????????????????????????? | | ?# # #####??????????????????????????????????## | +----------------------------------------------------+ Best States ------------- Heat Dissipation 47 Energy Generation 15 Energy Capacity 265 Matter Stores 300 Matter Capacity 300 Sight Range 16 Terrain Scan Density 10 Armor Coverage 150 Evasion (%) 55 Item Schematics ----------------- None Robot Schematics ------------------ None Fabricated ------------ Nothing Alien Tech Used ----------------- None Achievements -------------- None Challenges ------------ None Game ------ Seed ThrowingFluxAnalyzer Manual? 0 Play Time 00:24:42 Cumulative 7.5 hours Start 2024.04.03 @ 21:48:11 End 2024.04.03 @ 22:12:24 Sessions 1 Manual Loads 0 Difficulty Rogue Special Mode None Game No. 14 Rogue 14 Adventurer 0 Explorer 0 Win Type - Total 0 Types 0/0/0/0/0/0/0/0/0 Lore% 1 Gallery% 13 Achievement% 8 Wizard Run 0 Options --------- Layout 0 ASCII 0 Keyboard 1 Movement Vi Keybinds 0 Fullscreen 2 Font 24/Smallcaps Map View 76x50 Zoom Use 0% Tactical HUD 0 Map Filters NONE Filters NONE Steam 1 RUN: 33682671-54f9-4271-9f19-df8d12feda82